bitfinex/quotes_BTCUSD_20250127
["timestamp","ask_amount","ask_price","bid_price","bid_amount"]
[1737955102334,0.2931871,100690.0,100680.0,1.49090082]
[1737955102529,0.2931871,100690.0,100680.0,1.37465282]
[1737955104291,0.2931871,100690.0,100680.0,1.69505282]
[1737955104469,0.2931871,100690.0,100680.0,1.54703993]
[1737955104669,0.2931871,100690.0,100680.0,1.67205282]
[1737955104893,0.2930871,100690.0,100680.0,1.32229264]
[1737955105594,0.2920871,100690.0,100680.0,1.31829264]
[1737955105793,0.2930871,100690.0,100680.0,1.20227975]
[1737955105992,0.2920871,100690.0,100680.0,1.19027975]
[1737955106173,0.3920871,100690.0,100680.0,0.33027975]
[1737955106376,0.3930871,100690.0,100680.0,0.33727975]
[1737955106779,0.3930871,100690.0,100680.0,0.33527975]
[1737955107023,0.3930871,100690.0,100680.0,0.46029264]
[1737955108115,0.3930871,100690.0,100680.0,0.46329264]
[1737955108802,0.2930871,100690.0,100680.0,0.46329264]
[1737955109733,0.3930871,100690.0,100680.0,0.18827975]
[1737955109932,0.3930871,100690.0,100680.0,0.17780022]
[1737955110134,0.49043439,100690.0,100680.0,0.17780022]
[1737955110338,0.46743439,100690.0,100680.0,0.17780022]
[1737955110734,0.76400639,100690.0,100680.0,0.0104459]
[1737955111180,0.76400639,100690.0,100680.0,0.1594319]
[1737955111879,0.76400639,100690.0,100680.0,0.0074459]
[1737955112084,0.76300639,100690.0,100680.0,0.0004459]
[1737955112719,0.76300639,100690.0,100680.0,0.0014459]
[1737955112924,0.76300639,100690.0,100680.0,0.0004459]
[1737955113244,0.76300639,100690.0,100680.0,0.0014459]
[1737955114219,0.76300639,100690.0,100680.0,0.1504319]
[1737955115656,0.76300639,100690.0,100680.0,0.0014459]
[1737955116299,0.76300639,100690.0,100680.0,0.1504319]
[1737955116484,0.76300639,100690.0,100680.0,0.0014459]
[1737955117454,0.76300639,100690.0,100680.0,0.1504319]
[1737955118426,0.76400639,100690.0,100680.0,0.1494319]
[1737955118833,0.76600639,100690.0,100680.0,0.1494319]
[1737955119061,0.76500639,100690.0,100680.0,0.1494319]
[1737955119262,0.76400639,100690.0,100680.0,0.1494319]
[1737955119932,0.76600639,100690.0,100680.0,0.1494319]
[1737955120151,0.76104612,100690.0,100680.0,0.0004459]
[1737955122018,0.83404612,100690.0,100680.0,0.0004459]
[1737955123663,0.84406592,100690.0,100680.0,0.0004459]
[1737955127035,0.84406592,100690.0,100680.0,0.1494319]
[1737955127248,0.48747412,100690.0,100680.0,0.27444479]
[1737955127452,0.29012683,100690.0,100680.0,0.27444479]
[1737955127657,0.29012683,100690.0,100680.0,0.35094479]
[1737955128100,0.29012683,100690.0,100680.0,0.62595768]
[1737955128101,0.28712683,100690.0,100680.0,0.62595768]
[1737955128303,0.28712683,100690.0,100680.0,0.72330497]
[1737955128512,0.28812683,100690.0,100680.0,0.72430497]
[1737955128891,0.28712683,100690.0,100680.0,0.72430497]
[1737955129307,0.28712683,100690.0,100680.0,0.72330497]
[1737955129727,0.28712683,100690.0,100680.0,0.50494479]
[1737955130857,0.28712683,100690.0,100680.0,0.51608897]
[1737955131221,0.28712683,100690.0,100680.0,0.5361224]
[1737955132193,0.28712683,100690.0,100680.0,0.4596224]
[1737955132407,0.38712683,100690.0,100680.0,0.31457608]
[1737955132860,0.38712683,100690.0,100680.0,0.43958897]
[1737955133287,0.28712683,100690.0,100680.0,0.43958897]
[1737955133495,0.28712683,100690.0,100680.0,0.64120186]
[1737955133695,0.28712683,100690.0,100680.0,0.51618897]
[1737955134317,0.28712683,100690.0,100680.0,0.64120186]
[1737955135506,0.28712683,100690.0,100680.0,1.28014915]
[1737955136126,0.28712683,100690.0,100680.0,1.34834915]
[1737955136374,0.28712683,100690.0,100680.0,1.37925409]
[1737955136778,0.28712683,100690.0,100680.0,1.37825409]
[1737955137161,0.28712683,100690.0,100680.0,1.38225409]
[1737955137404,0.28450443,100690.0,100680.0,1.38225409]
[1737955137605,0.28691588,100690.0,100680.0,1.38225409]
[1737955137923,0.28691588,100690.0,100680.0,1.37825409]
[1737955138097,0.28791588,100690.0,100680.0,1.38725409]
[1737955138457,0.28791588,100690.0,100680.0,1.38325409]
[1737955138576,0.28791588,100690.0,100680.0,1.38725409]
[1737955139206,0.20846388,100690.0,100680.0,1.38725409]
[1737955139408,0.18860088,100690.0,100680.0,2.08871015]
[1737955139801,0.18618943,100690.0,100680.0,2.11961063]
[1737955139972,0.18618943,100690.0,100680.0,2.44001063]
[1737955140305,0.16632643,100690.0,100680.0,2.44001063]
[1737955140481,0.12660043,100690.0,100680.0,2.44001063]
[1737955140682,0.08687443,100690.0,100680.0,2.44001063]
[1737955140921,0.08687443,100690.0,100680.0,1.70764963]
[1737955141128,0.08687443,100690.0,100680.0,1.86247963]
[1737955141326,0.02728543,100690.0,100680.0,1.84157915]
[1737955141676,4.3e-07,100690.0,100680.0,1.84157915]
[1737955141883,0.03370043,100710.0,100700.0,0.375557]
[1737955142080,0.0001416,100730.0,100720.0,0.148927]
[1737955142282,0.46090089,100730.0,100720.0,0.148927]
[1737955142890,0.31198889,100730.0,100720.0,0.148927]
[1737955143191,0.3120383,100730.0,100720.0,0.148927]
[1737955144605,0.81089136,100730.0,100720.0,0.148927]
[1737955144810,0.81089136,100730.0,100720.0,0.149927]
[1737955145244,0.91089136,100730.0,100720.0,0.149927]
[1737955145656,0.81089136,100730.0,100720.0,0.149927]
[1737955145883,0.82943136,100730.0,100720.0,0.149927]
[1737955147352,0.73208407,100730.0,100720.0,0.149927]
[1737955147976,0.65488407,100730.0,100720.0,0.149927]
[1737955148517,0.65488407,100730.0,100720.0,0.148927]
[1737955148738,0.65488407,100730.0,100720.0,0.27493989]
[1737955149172,0.65488407,100730.0,100720.0,0.27393989]
[1737955149383,0.65488407,100730.0,100720.0,0.152927]
[1737955151131,0.65488407,100730.0,100720.0,0.153927]
[1737955152061,0.92903136,100730.0,100720.0,0.153927]
[1737955153023,0.92903136,100730.0,100720.0,0.152927]
[1737955153220,1.07794336,100730.0,100720.0,0.148927]
[1737955153423,0.92903136,100730.0,100720.0,0.148927]
[1737955153682,0.0459,100720.0,100710.0,0.35794796]
[1737955153905,0.66188223,100720.0,100710.0,0.15937496]
[1737955154126,0.76064102,100720.0,100710.0,0.15937896]
[1737955154379,0.98636802,100720.0,100710.0,0.01043696]
[1737955154506,0.98636802,100720.0,100710.0,0.15937896]
[1737955154710,0.1,100710.0,100700.0,0.76000024]
[1737955154939,0.5964,100710.0,100700.0,0.76000024]
[1737955155161,0.71474102,100710.0,100700.0,0.198594]
[1737955155376,0.79154102,100710.0,100700.0,0.198594]
[1737955156126,0.79154102,100710.0,100700.0,0.202594]
[1737955156539,0.79154102,100710.0,100700.0,0.203594]
[1737955156737,0.79154102,100710.0,100700.0,0.21351783]
[1737955160022,0.79154102,100710.0,100700.0,0.2138154]
[1737955160294,0.79168272,100710.0,100700.0,0.2138154]
[1737955162122,1.03797201,100710.0,100700.0,0.00529757]
[1737955162346,1.27357201,100710.0,100700.0,0.00529757]
[1737955162976,1.4515849,100710.0,100700.0,0.00529757]
[1737955163200,2.4023849,100710.0,100700.0,0.00429757]
[1737955163405,2.7505439,100710.0,100700.0,0.00429757]
[1737955163611,2.87555679,100710.0,100700.0,0.00429757]
[1737955164047,2.7515439,100710.0,100700.0,0.00429757]
[1737955164980,2.7515439,100710.0,100700.0,0.00029757]
[1737955165188,2.77752997,100710.0,100700.0,0.00029757]
[1737955165547,2.77052997,100710.0,100700.0,0.00029757]
[1737955165744,2.77952997,100710.0,100700.0,0.00129757]
[1737955165975,2.78252997,100710.0,100700.0,0.00129757]
[1737955167871,2.87796997,100710.0,100700.0,0.00129757]
[1737955168616,2.85796997,100710.0,100700.0,0.00129757]
[1737955169647,2.87796997,100710.0,100700.0,0.00129757]
[1737955169848,2.85796997,100710.0,100700.0,0.00129757]
[1737955170252,0.248986,100680.0,100670.0,0.198667]
[1737955170458,0.86127329,100680.0,100670.0,0.198667]
[1737955170667,0.94106231,100680.0,100670.0,0.198667]
[1737955170883,0.79207631,100680.0,100670.0,0.198667]
[1737955171503,0.79207631,100680.0,100670.0,0.19916215]
[1737955172142,0.79207631,100680.0,100670.0,0.20016215]
[1737955172973,0.69207631,100680.0,100670.0,0.20045972]
[1737955175608,0.51732902,100680.0,100670.0,0.32547261]
[1737955176010,0.51732902,100680.0,100670.0,0.20045972]
[1737955176416,0.61467631,100680.0,100670.0,0.20045972]
[1737955176627,0.86366231,100680.0,100670.0,0.20045972]
[1737955176861,0.86366231,100680.0,100670.0,0.00179272]
[1737955177061,0.93916231,100680.0,100670.0,0.00179272]
[1737955177264,0.79017631,100680.0,100670.0,0.15079372]
[1737955177494,0.71467631,100680.0,100670.0,0.15079372]
[1737955180661,1.1615752,100680.0,100670.0,0.00179272]
[1737955180865,1.03656231,100680.0,100670.0,0.00179272]
[1737955181837,1.03756231,100680.0,100670.0,0.00079272]
[1737955182227,1.04056231,100680.0,100670.0,0.00079272]
[1737955183893,1.14056231,100680.0,100670.0,0.00079272]
[1737955184304,0.76607631,100680.0,100670.0,0.14979372]
[1737955184553,0.77491631,100680.0,100670.0,0.14979372]
[1737955184952,0.92390231,100680.0,100670.0,0.14979372]
[1737955185154,0.92304391,100680.0,100670.0,0.14979372]
[1737955185331,0.91520391,100680.0,100670.0,0.14979372]
[1737955185569,0.91220391,100680.0,100670.0,0.14979372]
[1737955185738,0.91520391,100680.0,100670.0,0.14979372]
[1737955186370,0.91520391,100680.0,100670.0,0.00079272]
[1737955188357,0.84820391,100680.0,100670.0,0.00079272]
[1737955188659,0.92820391,100680.0,100670.0,0.00079272]
[1737955188866,0.93020391,100680.0,100670.0,0.00079272]
[1737955189278,0.99820391,100680.0,100670.0,0.00079272]
[1737955195997,1.00724391,100680.0,100670.0,0.00079272]
[1737955197887,0.87684391,100680.0,100670.0,0.00079272]
[1737955201572,0.86780391,100680.0,100670.0,0.00079272]
[1737955201779,0.87684391,100680.0,100670.0,0.00079272]
[1737955201942,0.87684391,100680.0,100670.0,0.14979372]
[1737955202142,0.87684391,100680.0,100670.0,0.00079272]
[1737955203865,0.71881791,100680.0,100670.0,0.14979372]
[1737955204992,0.71781791,100680.0,100670.0,0.14979372]
[1737955205349,0.71581791,100680.0,100670.0,0.14979372]
[1737955205510,0.71881791,100680.0,100670.0,0.14979372]
[1737955205921,0.71781791,100680.0,100670.0,0.14979372]
[1737955207040,0.62047062,100680.0,100670.0,0.14979372]
[1737955207247,0.62047062,100680.0,100670.0,0.27480661]
[1737955207983,0.62047062,100680.0,100670.0,0.14979372]
[1737955208194,0.62047062,100680.0,100670.0,0.16821956]
[1737955209150,0.62047062,100680.0,100670.0,0.17817905]
[1737955209551,0.62047062,100680.0,100670.0,0.30319194]
[1737955209760,0.52047062,100680.0,100670.0,0.38579194]
[1737955209959,0.52047062,100680.0,100670.0,0.58209194]
[1737955211787,0.51747062,100680.0,100670.0,0.58209194]
[1737955212199,0.51747062,100680.0,100670.0,0.58709194]
[1737955212775,0.51747062,100680.0,100670.0,0.46207905]
[1737955212998,0.51747062,100680.0,100670.0,0.41577905]
[1737955214173,0.51747062,100680.0,100670.0,0.54079194]
[1737955219523,0.51747062,100680.0,100670.0,0.5223661]
[1737955221501,0.51747062,100680.0,100670.0,1.16131339]
[1737955223253,0.51747062,100680.0,100670.0,1.20871339]
[1737955226188,0.51747062,100680.0,100670.0,1.01847445]
[1737955227111,0.51747062,100680.0,100670.0,0.98751339]
[1737955227335,0.51747062,100680.0,100670.0,0.48515321]
[1737955227528,0.51747062,100680.0,100670.0,0.15479372]
[1737955227529,0.79181791,100680.0,100670.0,0.15479372]
[1737955228602,0.79181791,100680.0,100670.0,0.15079372]
[1737955228805,0.79181791,100680.0,100670.0,0.14979372]
[1737955229415,0.84080391,100680.0,100670.0,0.00079272]
[1737955229852,0.84080391,100680.0,100670.0,0.14979372]
[1737955230974,0.69181791,100680.0,100670.0,0.14979372]
[1737955231116,0.61747062,100680.0,100670.0,0.14979372]
[1737955231955,0.71581791,100680.0,100670.0,0.14979372]
[1737955232331,0.71781791,100680.0,100670.0,0.14979372]
[1737955232528,0.71481791,100680.0,100670.0,0.14979372]
[1737955232737,0.94080391,100680.0,100670.0,0.00079272]
[1737955232918,0.84080391,100680.0,100670.0,0.00079272]
[1737955233525,0.84080391,100680.0,100670.0,0.14979372]
[1737955233726,0.84080391,100680.0,100670.0,0.00079272]
[1737955234733,0.84080391,100680.0,100670.0,0.14979372]
[1737955234936,0.69181791,100680.0,100670.0,0.14979372]
[1737955235143,0.79181791,100680.0,100670.0,0.14979372]
[1737955235346,0.94080391,100680.0,100670.0,0.00079272]
[1737955235682,0.94080391,100680.0,100670.0,0.14979372]
[1737955236716,1.11060391,100680.0,100670.0,0.00079272]
[1737955238334,1.2356168,100680.0,100670.0,0.00079272]
[1737955238648,1.2386168,100680.0,100670.0,0.00079272]
[1737955239215,1.2396168,100680.0,100670.0,0.00079272]
[1737955239420,1.3966168,100680.0,100670.0,0.00079272]
[1737955239665,2.1400168,100680.0,100670.0,0.00079272]
[1737955239892,2.23936409,100680.0,100670.0,0.00079272]
[1737955240039,1.51696409,100680.0,100670.0,0.00079272]
[1737955240237,1.3896168,100680.0,100670.0,0.00079272]
[1737955240463,1.26460391,100680.0,100670.0,0.00079272]
[1737955240668,1.11460391,100680.0,100670.0,0.00079272]
[1737955241387,1.11160391,100680.0,100670.0,0.00079272]
[1737955241555,1.26160391,100680.0,100670.0,0.00079272]
[1737955241759,1.2956168,100680.0,100670.0,0.00079272]
[1737955241968,1.3066168,100680.0,100670.0,0.00179272]
[1737955242559,1.3036168,100680.0,100670.0,0.00179272]
[1737955242754,1.2956168,100680.0,100670.0,0.00079272]
[1737955243021,1.2966168,100680.0,100670.0,0.00079272]
[1737955243224,1.2986168,100680.0,100670.0,0.00079272]
[1737955243509,1.41596409,100680.0,100670.0,0.00079272]
[1737955244326,3.02477698,100680.0,100670.0,0.00079272]
[1737955245371,3.02177698,100680.0,100670.0,0.00079272]
[1737955245723,3.03891356,100680.0,100670.0,0.00079272]
[1737955245952,3.37718606,100680.0,100670.0,0.00079272]
[1737955247277,3.40061978,100680.0,100670.0,0.00079272]
[1737955247850,3.50521978,100680.0,100670.0,0.00079272]
[1737955248517,0.79995913,100670.0,100660.0,0.00029736]
[1737955248749,6.25308623,100670.0,100660.0,0.0004459]
[1737955248952,6.85151235,100670.0,100660.0,0.0004459]
[1737955249900,6.85151235,100670.0,100660.0,0.0014459]
[1737955249901,6.62865773,100670.0,100660.0,0.0014459]
[1737955250102,6.38290297,100670.0,100660.0,0.0014459]
[1737955250417,5.25364711,100670.0,100660.0,0.0014459]
[1737955250620,5.33653773,100670.0,100660.0,0.0014459]
[1737955250823,1.72199235,100670.0,100660.0,0.0014459]
[1737955251038,6.79147464,100670.0,100660.0,0.0014459]
[1737955252208,6.76976526,100670.0,100660.0,0.0014459]
[1737955252409,6.74582002,100670.0,100660.0,0.0014459]
[1737955252628,6.64122002,100670.0,100660.0,0.0014459]
[1737955252827,3.43032002,100670.0,100660.0,0.0014459]
[1737955253033,3.42032002,100670.0,100660.0,0.0014459]
[1737955254356,3.39352002,100670.0,100660.0,0.0014459]
[1737955254760,3.48904002,100670.0,100660.0,0.0014459]
[1737955255184,3.47956002,100670.0,100660.0,0.0014459]
[1737955255383,1.88686002,100670.0,100660.0,0.0014459]
[1737955255596,1.80086002,100670.0,100660.0,0.0014459]
[1737955255882,1.79086002,100670.0,100660.0,0.0014459]
[1737955256471,1.89546002,100670.0,100660.0,0.0014459]
[1737955256879,0.617375,100620.0,100610.0,0.00029715]
[1737955257097,0.617375,100620.0,100610.0,0.0003956]
[1737955257098,6.99510596,100620.0,100610.0,0.0003956]
[1737955257299,7.05515815,100620.0,100610.0,0.0003956]
[1737955257486,5.83965815,100620.0,100610.0,0.0003956]
[1737955257621,4.80170339,100620.0,100610.0,0.0003956]
[1737955257835,4.32590339,100620.0,100610.0,0.0003956]
[1737955258159,4.35561277,100620.0,100610.0,0.0013956]
[1737955258520,4.37561277,100620.0,100610.0,0.0013956]
[1737955258793,4.33490339,100620.0,100610.0,0.0013956]
[1737955258953,4.40571277,100620.0,100610.0,0.0013956]
[1737955259159,4.36005815,100620.0,100610.0,0.0013956]
[1737955259367,4.35905815,100620.0,100610.0,0.0013956]
[1737955259569,4.36105815,100620.0,100610.0,0.0013956]
[1737955260030,4.35305815,100620.0,100610.0,0.0003956]
[1737955260197,4.38882931,100620.0,100610.0,0.0003956]
[1737955260394,4.36305815,100620.0,100610.0,0.0003956]
[1737955260579,4.15405815,100620.0,100610.0,0.0003956]
[1737955260776,4.16305815,100620.0,100610.0,0.0003956]
[1737955261839,4.17302235,100620.0,100610.0,0.0003956]
[1737955262047,4.49304641,100620.0,100610.0,0.0003956]
[1737955263092,4.49197374,100620.0,100610.0,0.0003956]
[1737955263486,4.52166949,100620.0,100610.0,0.0003956]
[1737955263870,4.48237374,100620.0,100610.0,0.0003956]
[1737955264070,4.49193374,100620.0,100610.0,0.0003956]
[1737955264382,4.48930001,100620.0,100610.0,0.0003956]
[1737955265415,0.64739,100610.0,100600.0,0.00269736]
[1737955265624,6.20594621,100610.0,100600.0,0.00269736]
[1737955265974,6.704949,100610.0,100600.0,0.00269736]
[1737955266476,6.82996189,100610.0,100600.0,0.00269736]
[1737955266826,6.704949,100610.0,100600.0,0.00269736]
[1737955267041,7.35717872,100610.0,100600.0,0.00269736]
[1737955267239,7.32276189,100610.0,100600.0,0.00269736]
[1737955267446,2.27276189,100610.0,100600.0,0.00269736]
[1737955267642,7.33176189,100610.0,100600.0,0.00269736]
[1737955268775,7.32976189,100610.0,100600.0,0.00269736]
[1737955268997,7.33276189,100610.0,100600.0,0.00269736]
[1737955269404,7.207749,100610.0,100600.0,0.00269736]
[1737955270655,6.807749,100610.0,100600.0,0.00269736]
[1737955270857,5.024829,100610.0,100600.0,0.00269736]
[1737955271058,4.992349,100610.0,100600.0,0.00269736]
[1737955271268,4.233429,100610.0,100600.0,0.00269736]
[1737955271471,1.3210726,100610.0,100600.0,0.00269736]
[1737955271679,1.32179235,100610.0,100600.0,0.00269736]
[1737955271886,1.31215235,100610.0,100600.0,0.00269736]
[1737955272096,1.32187235,100610.0,100600.0,0.00269736]
[1737955272305,1.56723253,100610.0,100600.0,0.00269736]
[1737955272513,1.21659235,100610.0,100600.0,0.15180236]
[1737955272714,0.87760983,100610.0,100600.0,0.23110236]
[1737955272921,0.71560983,100610.0,100600.0,0.23110236]
[1737955273071,0.81560983,100610.0,100600.0,0.23110236]
[1737955273430,0.72360983,100610.0,100600.0,0.23110236]
[1737955273564,0.71560983,100610.0,100600.0,0.23110236]
[1737955275180,0.61560983,100610.0,100600.0,0.23210236]
[1737955276109,0.71560983,100610.0,100600.0,0.23210236]
[1737955277038,1.03769983,100610.0,100600.0,0.00369736]
[1737955277196,1.06271272,100610.0,100600.0,0.00369736]
[1737955278356,1.06271272,100610.0,100600.0,0.00269736]
[1737955279167,0.93769983,100610.0,100600.0,0.00269736]
[1737955280445,1.03769983,100610.0,100600.0,0.00269736]
[1737955280637,0.93769983,100610.0,100600.0,0.00269736]
[1737955281860,1.03769983,100610.0,100600.0,0.00269736]
[1737955282066,0.76560983,100610.0,100600.0,0.15180236]
[1737955282409,0.71560983,100610.0,100600.0,0.15180236]
[1737955283129,0.51826254,100610.0,100600.0,0.15180236]
[1737955283356,0.51826254,100610.0,100600.0,0.23480236]
[1737955284177,0.61560983,100610.0,100600.0,0.23480236]
[1737955285434,0.61560983,100610.0,100600.0,0.23580236]
[1737955286141,0.61560983,100610.0,100600.0,0.23480236]
[1737955286346,0.76469983,100610.0,100600.0,0.23480236]
[1737955286539,0.61560983,100610.0,100600.0,0.23480236]
[1737955286938,0.61560983,100610.0,100600.0,0.23580236]
[1737955287345,0.76469983,100610.0,100600.0,0.08669736]
[1737955287650,0.76469983,100610.0,100600.0,0.00369736]
[1737955287651,0.88504712,100610.0,100600.0,0.00369736]
[1737955288085,0.78769983,100610.0,100600.0,0.00369736]
[1737955288291,0.88769983,100610.0,100600.0,0.00269736]
[1737955288488,0.78769983,100610.0,100600.0,0.00269736]
[1737955288690,0.86469983,100610.0,100600.0,0.15180236]
[1737955288931,0.88769983,100610.0,100600.0,0.00269736]
[1737955289806,0.88784153,100610.0,100600.0,0.00269736]
[1737955291583,1.03784153,100610.0,100600.0,0.00269736]
[1737955293355,0.86575153,100610.0,100600.0,0.15180236]
[1737955293498,1.01484153,100610.0,100600.0,0.15180236]
[1737955293976,1.01484153,100610.0,100600.0,0.00269736]
[1737955294909,1.03784153,100610.0,100600.0,0.00269736]
[1737955295533,3.21060171,100610.0,100600.0,0.00269736]
[1737955295733,2.45140921,100610.0,100600.0,0.00269736]
[1737955295941,2.45696921,100610.0,100600.0,0.00269736]
[1737955296149,2.37886921,100610.0,100600.0,0.00269736]
[1737955296350,1.90516921,100610.0,100600.0,0.00269736]
[1737955296559,1.03340153,100610.0,100600.0,0.00269736]
[1737955296804,1.04320153,100610.0,100600.0,0.00269736]
[1737955297432,1.03340153,100610.0,100600.0,0.00269736]
[1737955297638,1.04320153,100610.0,100600.0,0.00269736]
[1737955297871,1.14620153,100610.0,100600.0,0.00269736]
[1737955298058,1.14520153,100610.0,100600.0,0.00269736]
[1737955298753,1.14320153,100610.0,100600.0,0.00269736]
[1737955299197,1.12020153,100610.0,100600.0,0.15180236]
[1737955299697,0.96040153,100610.0,100600.0,0.15180236]
[1737955299901,0.97016153,100610.0,100600.0,0.15180236]
[1737955300339,0.97016153,100610.0,100600.0,0.00269736]
[1737955300467,0.97016153,100610.0,100600.0,0.15180236]
[1737955301118,0.97016153,100610.0,100600.0,0.00269736]
[1737955302058,1.09050882,100610.0,100600.0,0.00269736]
[1737955302262,1.36552171,100610.0,100600.0,0.00269736]
[1737955302467,1.36544171,100610.0,100600.0,0.00269736]
[1737955302668,1.14308153,100610.0,100600.0,0.00269736]
[1737955304353,1.14608153,100610.0,100600.0,0.00269736]
[1737955304642,1.14708153,100610.0,100600.0,0.00269736]
[1737955305613,1.15595458,100610.0,100600.0,0.00269736]
[1737955305994,1.23995458,100610.0,100600.0,0.00269736]
[1737955306421,1.23695458,100610.0,100600.0,0.00269736]
[1737955306747,1.23730187,100610.0,100600.0,0.00269736]
[1737955307130,1.36231476,100610.0,100600.0,0.00269736]
[1737955307956,1.75872196,100610.0,100600.0,0.00269736]
[1737955308187,1.77872196,100610.0,100600.0,0.00269736]
[1737955310733,1.69572196,100610.0,100600.0,0.00269736]
[1737955311154,1.20220187,100610.0,100600.0,0.00269736]
[1737955311432,1.05695458,100610.0,100600.0,0.00269736]
[1737955311630,1.15695458,100610.0,100600.0,0.00269736]
[1737955313240,1.35956747,100610.0,100600.0,0.00269736]
[1737955313442,1.23455458,100610.0,100600.0,0.00269736]
[1737955313705,1.25430187,100610.0,100600.0,0.00269736]
[1737955314018,1.37931476,100610.0,100600.0,0.00269736]
[1737955315601,1.77472616,100610.0,100600.0,0.00269736]
[1737955315818,1.79472616,100610.0,100600.0,0.00269736]
[1737955316025,1.77472616,100610.0,100600.0,0.00269736]
[1737955316223,1.79472616,100610.0,100600.0,0.00269736]
[1737955317899,1.62281327,100610.0,100600.0,0.00269736]
[1737955318874,1.35546598,100610.0,100600.0,0.00269736]
[1737955319158,0.97388153,100610.0,100600.0,0.00269736]
[1737955319494,0.87832153,100610.0,100600.0,0.00269736]
[1737955321212,0.86884153,100610.0,100600.0,0.00269736]
[1737955321553,0.87840153,100610.0,100600.0,0.00269736]
[1737955322209,1.27376171,100610.0,100600.0,0.00269736]
[1737955323116,1.05140153,100610.0,100600.0,0.00269736]
[1737955324968,1.02840153,100610.0,100600.0,0.00269736]
[1737955325950,1.02832153,100610.0,100600.0,0.00269736]
[1737955329404,1.02824153,100610.0,100600.0,0.00269736]
[1737955329626,1.01884153,100610.0,100600.0,0.00269736]
[1737955329921,1.02824153,100610.0,100600.0,0.08059736]
[1737955330131,1.02824153,100610.0,100600.0,0.00269736]
[1737955330337,1.12558882,100610.0,100600.0,0.00269736]
[1737955332009,1.02824153,100610.0,100600.0,0.00269736]
[1737955333135,1.05124153,100610.0,100600.0,0.00269736]
[1737955333341,1.57266272,100610.0,100600.0,0.00269736]
[1737955334792,1.44764983,100610.0,100600.0,0.00269736]
[1737955336630,1.57266272,100610.0,100600.0,0.00269736]
[1737955336837,1.67001001,100610.0,100600.0,0.00269736]
[1737955338462,1.76557001,100610.0,100600.0,0.00269736]
[1737955338689,1.64055712,100610.0,100600.0,0.00269736]
[1737955338898,1.76557001,100610.0,100600.0,0.00269736]
[1737955339437,1.54304983,100610.0,100600.0,0.00269736]
[1737955340660,1.66806272,100610.0,100600.0,0.00269736]
[1737955342300,1.6836389,100610.0,100600.0,0.00269736]
[1737955342487,1.66806272,100610.0,100600.0,0.00269736]
[1737955343245,1.68806272,100610.0,100600.0,0.00269736]
[1737955343450,5.85521001,100610.0,100600.0,0.00269736]
[1737955344446,2.86831001,100610.0,100600.0,0.00269736]
[1737955344880,2.87731001,100610.0,100600.0,0.00269736]
[1737955345487,2.87631001,100610.0,100600.0,0.00269736]
[1737955346241,2.87931001,100610.0,100600.0,0.00269736]
[1737955347556,1.76716272,100610.0,100600.0,0.00269736]
[1737955347944,1.86716272,100610.0,100600.0,0.00269736]
[1737955348157,1.84616272,100610.0,100600.0,0.00269736]
[1737955348336,1.39290983,100610.0,100600.0,0.00269736]
[1737955348534,1.0863422,100610.0,100600.0,0.00269736]
[1737955348734,1.1863422,100610.0,100600.0,0.08229736]
[1737955349174,1.1863422,100610.0,100600.0,0.00269736]
[1737955349322,1.1864222,100610.0,100600.0,0.00269736]
[1737955349530,1.1834222,100610.0,100600.0,0.00269736]
[1737955349732,1.12764153,100610.0,100600.0,0.00269736]
[1737955350079,1.12964153,100610.0,100600.0,0.00269736]
[1737955350253,1.12064153,100610.0,100600.0,0.00269736]
[1737955350410,1.27565442,100610.0,100600.0,0.00269736]
[1737955351221,1.12764153,100610.0,100600.0,0.00269736]
[1737955352837,1.11840153,100610.0,100600.0,0.00269736]
[1737955353031,1.11840153,100610.0,100600.0,0.15180236]
[1737955353353,1.12760153,100610.0,100600.0,0.15180236]
[1737955354306,0.96931153,100610.0,100600.0,0.23130236]
[1737955354912,0.71931153,100610.0,100600.0,0.23130236]
[1737955355114,0.72196424,100610.0,100600.0,0.40461525]
[1737955355533,0.72196424,100610.0,100600.0,0.27960236]
[1737955355922,0.71996424,100610.0,100600.0,0.27960236]
[1737955356117,0.72096424,100610.0,100600.0,0.27960236]
[1737955356536,0.71996424,100610.0,100600.0,0.27960236]
[1737955356904,0.71296424,100610.0,100600.0,0.27960236]
[1737955357629,0.71696424,100610.0,100600.0,0.27960236]
[1737955357833,0.71296424,100610.0,100600.0,0.27960236]
[1737955359845,0.71031153,100610.0,100600.0,0.27960236]
[1737955360152,0.71031153,100610.0,100600.0,0.13049736]
[1737955360153,0.95940153,100610.0,100600.0,0.13049736]
[1737955360337,0.95940153,100610.0,100600.0,0.27960236]
[1737955361036,0.81031153,100610.0,100600.0,0.27960236]
[1737955362085,0.71475153,100610.0,100600.0,0.27960236]
[1737955363759,0.71475153,100610.0,100600.0,0.28160236]
[1737955364358,0.86384153,100610.0,100600.0,0.00469736]
[1737955364521,0.86384153,100610.0,100600.0,0.15380236]
[1737955365589,0.71475153,100610.0,100600.0,0.15380236]
[1737955367018,0.71475153,100610.0,100600.0,0.00469736]
[1737955367019,0.86384153,100610.0,100600.0,0.00469736]
[1737955367197,0.86384153,100610.0,100600.0,0.15380236]
[1737955368451,0.86384153,100610.0,100600.0,0.00469736]
[1737955368651,1.01384153,100610.0,100600.0,0.00469736]
[1737955368888,1.28360171,100610.0,100600.0,0.00469736]
[1737955369115,1.18625442,100610.0,100600.0,0.00469736]
[1737955369394,1.06124153,100610.0,100600.0,0.00469736]
[1737955369601,1.06124153,100610.0,100600.0,0.00269736]
[1737955369989,1.53575962,100610.0,100600.0,0.00269736]
[1737955370408,1.53975962,100610.0,100600.0,0.00269736]
[1737955370617,6.68710691,100610.0,100600.0,0.00269736]
[1737955370824,6.42820691,100610.0,100600.0,0.00269736]
[1737955371023,4.11190691,100610.0,100600.0,0.00269736]
[1737955371541,2.35676691,100610.0,100600.0,0.00269736]
[1737955371740,2.01166691,100610.0,100600.0,0.00269736]
[1737955371954,2.01266691,100610.0,100600.0,0.00269736]
[1737955372762,2.0427356,100610.0,100600.0,0.00269736]
[1737955374575,1.9938356,100610.0,100600.0,0.00269736]
[1737955374810,1.8750356,100610.0,100600.0,0.00269736]
[1737955375005,1.65267542,100610.0,100600.0,0.00269736]
[1737955375284,1.20083022,100610.0,100600.0,0.00269736]
[1737955375505,1.32584311,100610.0,100600.0,0.00269736]
[1737955375808,1.20083022,100610.0,100600.0,0.00269736]
[1737955377445,1.32584311,100610.0,100600.0,0.00269736]
[1737955377644,1.20083022,100610.0,100600.0,0.00269736]
[1737955378321,1.12473022,100610.0,100600.0,0.00269736]
[1737955381759,1.02463027,100610.0,100600.0,0.00269736]
[1737955381967,1.03355027,100610.0,100600.0,0.00269736]
[1737955383009,1.13355027,100610.0,100600.0,0.00269736]
[1737955383236,1.12336153,100610.0,100600.0,0.00269736]
[1737955383440,1.01440153,100610.0,100600.0,0.00269736]
[1737955383643,0.71531153,100610.0,100600.0,0.15180236]
[1737955383853,0.71796424,100610.0,100600.0,0.40531525]
[1737955384053,0.62240424,100610.0,100600.0,0.40531525]
[1737955384667,0.62240424,100610.0,100600.0,0.28030236]
[1737955384870,0.62140424,100610.0,100600.0,0.28030236]
[1737955385273,0.61740424,100610.0,100600.0,0.28230236]